bitfinex/quotes_SOLUSD_20240620
["timestamp","ask_amount","ask_price","bid_price","bid_amount"]
[1718845643205,7.4143,134.88,134.78,20.0]
[1718845643516,8.0936,134.89,134.83,7.4163]
[1718845643690,8.0936,134.89,134.84,7.416]
[1718845644608,7.4148,134.87,134.81,7.4175]
[1718845644808,0.17,134.85,134.8,7.4182]
[1718845645107,22.4413,134.84,134.75,25.73]
[1718845645303,15.0249,134.84,134.79,7.4186]
[1718845645513,15.0249,134.84,134.8,7.4183]
[1718845646091,15.0249,134.84,134.75,25.73]
[1718845646411,15.0249,134.84,134.8,7.4181]
[1718845646794,15.0249,134.84,134.81,7.4176]
[1718845647000,15.0249,134.84,134.82,7.4172]
[1718845647198,15.4864,134.87,134.82,7.4172]
[1718845647405,15.4864,134.87,134.75,25.73]
[1718845647604,15.4864,134.87,134.84,7.4161]
[1718845647801,15.4864,134.87,134.76,0.34]
[1718845648001,15.4864,134.87,134.85,7.4154]
[1718845648594,15.4864,134.87,134.84,7.4159]
[1718845648814,15.4864,134.87,134.83,7.4165]
[1718845649012,15.4864,134.87,134.82,7.417]
[1718845649218,0.17,134.86,134.82,7.417]
[1718845649401,0.17,134.86,134.83,7.4166]
[1718845649595,15.4864,134.87,134.83,7.4166]
[1718845649928,15.4864,134.87,134.84,7.4161]
[1718845650117,15.4864,134.87,134.83,7.4165]
[1718845650414,15.4864,134.87,134.75,41.5151]
[1718845650598,15.4864,134.87,134.84,7.4161]
[1718845651512,6.3642,134.88,134.86,7.415]
[1718845651727,15.4264,134.9,134.87,7.4145]
[1718845651936,15.4264,134.9,134.86,7.4148]
[1718845652217,15.4264,134.9,134.85,7.4154]
[1718845652516,0.17,134.89,134.85,7.4154]
[1718845652822,15.4264,134.9,134.87,7.4145]
[1718845653030,15.4264,134.9,134.86,7.4149]
[1718845653517,15.4264,134.9,134.85,7.4154]
[1718845653898,15.4264,134.9,134.86,7.415]
[1718845655536,15.4264,134.9,134.81,16.0744]
[1718845655907,15.4264,134.9,134.88,7.4136]
[1718845656103,6.4174,134.91,134.9,7.4128]
[1718845656308,16.3387,134.93,134.92,7.4117]
[1718845656606,22.5434,134.97,134.95,7.4097]
[1718845656813,22.5434,134.97,134.96,7.4096]
[1718845656995,15.8343,135.0,134.95,7.41]
[1718845657202,23.2419,135.0,134.94,7.4103]
[1718845657404,15.8343,135.0,134.96,7.4093]
[1718845658302,23.242,135.0,134.94,7.4103]
[1718845658620,23.242,135.0,134.95,7.4099]
[1718845658802,15.8343,135.0,134.96,7.4095]
[1718845659003,23.2417,135.0,134.95,7.4099]
[1718845659409,23.2417,135.0,134.95,7.41]
[1718845660207,15.8343,135.0,134.97,7.4086]
[1718845660406,6.5752,135.01,134.89,0.17]
[1718845660407,6.5752,135.01,134.98,7.4084]
[1718845661008,6.5752,135.01,134.96,7.4095]
[1718845661221,7.408,134.99,134.93,7.4108]
[1718845661414,6.5752,135.01,134.92,7.4115]
[1718845661619,7.4086,134.98,134.92,7.4115]
[1718845661821,0.34,134.99,134.88,25.73]
[1718845662126,8.0879,135.0,134.94,7.4106]
[1718845663323,6.5752,135.01,134.96,7.4095]
[1718845663508,6.5752,135.01,134.97,7.409]
[1718845664021,6.5752,135.01,134.96,7.4093]
[1718845664425,13.982,135.01,134.96,7.4093]
[1718845665438,6.5752,135.01,134.97,7.4086]
[1718845666229,6.5752,135.01,134.96,7.4094]
[1718845667212,6.5752,135.01,134.89,0.17]
[1718845667414,16.3053,135.03,135.0,7.407]
[1718845667617,16.3053,135.03,135.01,7.4068]
[1718845668012,16.3053,135.03,134.99,7.4077]
[1718845668831,16.3053,135.03,134.98,7.4084]
[1718845669307,16.3053,135.03,134.93,15.8118]
[1718845669308,16.3053,135.03,134.99,7.4079]
[1718845669507,16.3053,135.03,134.93,15.8118]
[1718845669708,16.3053,135.03,134.94,20.0]
[1718845670014,16.3053,135.03,134.98,7.4082]
[1718845670219,16.3053,135.03,134.99,7.4079]
[1718845671323,16.3053,135.03,134.98,7.4082]
[1718845671630,16.3053,135.03,134.99,7.4074]
[1718845671935,16.3053,135.03,134.94,20.0]
[1718845672116,13.4264,135.05,135.0,7.407]
[1718845672318,6.0216,135.05,134.95,25.73]
[1718845672642,6.0216,135.05,134.99,7.4078]
[1718845672811,7.4055,135.04,134.98,7.4082]
[1718845673010,6.0216,135.05,134.97,7.4088]
[1718845673314,7.4057,135.04,134.98,7.4083]
[1718845673619,16.0444,135.02,134.98,7.4083]
[1718845674341,16.0444,135.02,134.91,0.17]
[1718845674507,16.0444,135.02,134.91,20.68]
[1718845674912,16.0444,135.02,134.99,7.4077]
[1718845675113,16.0444,135.02,134.91,20.68]
[1718845675114,16.0444,135.02,134.98,7.4082]
[1718845675340,16.0444,135.02,134.91,20.51]
[1718845675523,16.0444,135.02,134.98,7.4083]
[1718845678119,16.0444,135.02,134.99,7.4078]
[1718845678443,16.0444,135.02,134.98,7.4082]
[1718845681147,29.9347,135.05,134.97,22.16]
[1718845681349,22.5297,135.05,134.98,20.0]
[1718845681521,16.5081,135.05,135.0,22.16]
[1718845681727,23.0937,135.09,135.0,22.16]
[1718845682521,30.4962,135.09,135.04,7.4049]
[1718845682725,30.4962,135.09,135.0,22.16]
[1718845682726,23.0937,135.09,135.0,22.16]
[1718845682931,7.4044,135.06,135.0,22.16]
[1718845683233,7.4044,135.06,135.01,7.4068]
[1718845683433,0.17,135.06,135.0,29.5671]
[1718845683637,0.34,135.06,135.01,7.4065]
[1718845683942,7.5733,135.08,135.02,7.4059]
[1718845684247,20.17,135.07,135.02,7.4059]
[1718845684941,0.17,135.06,134.97,22.16]
[1718845685136,0.17,135.06,134.96,22.16]
[1718845685137,0.51,135.06,134.96,22.16]
[1718845685337,0.17,135.05,135.0,7.407]
[1718845685541,20.34,135.05,135.01,7.4067]
[1718845685746,27.745,135.05,134.96,22.16]
[1718845685935,20.34,135.05,134.96,22.16]
[1718845686445,0.17,135.04,134.96,22.16]
[1718845686635,20.0,135.05,134.99,22.16]
[1718845686962,20.0,135.08,135.03,7.4053]
[1718845687251,20.0,135.08,135.04,7.4051]
[1718845687626,20.0,135.08,135.03,7.4055]
[1718845687821,7.4046,135.06,134.99,22.16]
[1718845688055,7.4047,135.05,135.0,7.407]
[1718845688257,7.5737,135.07,135.01,7.4067]
[1718845688546,20.17,135.06,135.03,7.4056]
[1718845688757,0.34,135.06,135.02,7.406]
[1718845689248,0.34,135.06,135.03,7.4054]
[1718845689419,0.17,135.06,135.02,7.406]
[1718845689620,0.34,135.06,134.99,22.16]
[1718845689850,0.34,135.05,134.99,22.16]
[1718845690051,0.34,135.04,134.99,22.16]
[1718845690229,0.34,135.04,135.01,7.4068]
[1718845690569,0.17,135.04,134.99,22.16]
[1718845690848,0.34,135.04,135.01,7.4067]
[1718845691543,20.0,135.06,134.99,22.16]
[1718845691724,0.17,135.05,134.99,22.16]
[1718845691924,20.0,135.08,134.99,22.16]
[1718845692123,20.0,135.08,135.03,7.4055]
[1718845692751,20.0,135.08,135.04,7.405]
[1718845693143,0.51,135.07,135.04,7.405]
[1718845694132,0.51,135.07,135.03,7.4054]
[1718845694550,0.51,135.07,135.04,7.4051]
[1718845694844,23.0937,135.09,135.02,22.16]
[1718845695045,16.5081,135.09,135.08,7.403]
[1718845695347,6.4402,135.12,135.02,22.16]
[1718845695348,22.8164,135.12,135.02,22.16]
[1718845695533,22.8164,135.12,135.08,7.4026]
[1718845696357,269.9366,135.16,135.1,7.4018]
[1718845696558,269.9366,135.16,135.05,22.16]
[1718845696559,15.8752,135.15,135.05,22.16]
[1718845696849,15.8752,135.15,135.12,7.4006]
[1718845697057,15.8752,135.15,135.08,22.16]
[1718845697231,15.3208,135.19,135.1,0.17]
[1718845697439,28.9101,135.19,135.13,7.4]
[1718845697838,21.513,135.19,135.14,7.3996]
[1718845698149,21.513,135.19,135.16,7.3986]
[1718845698462,21.513,135.19,135.11,22.16]
[1718845698758,22.3287,135.22,135.18,7.3971]
[1718845699051,22.3287,135.22,135.17,7.398]
[1718845699245,29.724,135.22,135.17,7.398]
[1718845699442,22.3287,135.22,135.18,7.3975]
[1718845699751,22.3287,135.22,135.14,22.16]
[1718845700143,22.3287,135.22,135.15,0.17]
[1718845700350,22.3287,135.22,135.17,7.3978]
[1718845700643,22.3287,135.22,135.18,7.3974]
[1718845701337,22.3287,135.22,135.17,7.3979]
[1718845701537,22.3287,135.22,135.18,7.3975]
[1718845701948,22.3287,135.22,135.2,7.3961]
[1718845702144,22.3287,135.22,135.18,7.3973]
[1718845702341,22.3287,135.22,135.13,6.318]
[1718845702530,0.68,135.21,135.16,7.3984]
[1718845702952,0.68,135.21,135.17,7.398]
[1718845703460,22.3287,135.22,135.18,7.3975]
[1718845703827,22.3287,135.22,135.17,7.3978]
[1718845704031,0.34,135.21,135.17,7.3978]
[1718845704231,0.34,135.21,135.16,7.3984]
[1718845704533,0.34,135.21,135.17,7.398]
[1718845705145,22.4987,135.22,135.19,7.3969]
[1718845705146,22.3287,135.22,135.19,7.3969]
[1718845705653,22.3287,135.22,135.19,7.3967]
[1718845706654,22.3287,135.22,135.18,7.3973]
[1718845708058,0.68,135.21,135.11,0.17]
[1718845708247,0.68,135.21,135.11,20.68]
[1718845708449,22.3287,135.22,135.18,7.3973]
[1718845708658,22.3287,135.22,135.19,7.3968]
[1718845709150,22.3287,135.22,135.18,7.3973]
[1718845709335,0.17,135.21,135.17,7.3978]
[1718845710457,0.17,135.21,135.18,7.3975]
[1718845710857,0.17,135.21,135.19,7.3969]
[1718845711154,22.3287,135.22,135.21,7.3959]
[1718845711364,16.5481,135.25,135.23,7.3946]
[1718845711558,16.5481,135.25,135.16,15.0999]
[1718845711754,16.5481,135.25,135.23,7.3944]
[1718845712062,7.3917,135.29,135.17,0.17]
[1718845712063,23.1022,135.29,135.17,0.17]
[1718845712259,23.1022,135.29,135.28,7.392]
[1718845712260,16.5481,135.29,135.28,7.392]
[1718845712442,6.5541,135.32,135.29,7.3915]
[1718845712785,6.5541,135.32,135.3,7.3909]
[1718845713054,6.5541,135.32,135.2,0.17]
[1718845713055,16.5481,135.33,135.31,7.3904]
[1718845713265,16.5481,135.33,135.3,7.3907]
[1718845713842,16.5481,135.33,135.29,7.3913]
[1718845714450,16.5481,135.33,135.25,0.17]
[1718845714748,16.5481,135.33,135.25,20.51]
[1718845715140,16.5481,135.33,135.25,20.0]
[1718845715336,16.5481,135.33,135.25,7.3935]
[1718845715655,16.5481,135.33,135.18,21.6544]
[1718845715858,0.17,135.32,135.28,7.3916]
[1718845716158,0.68,135.32,135.27,7.3924]
[1718845716344,20.68,135.32,135.19,20.0]
[1718845716666,28.0699,135.32,135.27,7.3925]
[1718845717164,28.0699,135.32,135.2,0.34]
[1718845717165,28.0699,135.32,135.26,7.393]
[1718845717460,20.68,135.32,135.27,7.3925]
[1718845718255,28.0699,135.32,135.27,7.3925]
[1718845718456,28.0699,135.32,135.19,20.0]
[1718845718457,0.17,135.3,135.19,20.0]
[1718845718655,0.17,135.28,135.23,7.3943]
[1718845718855,16.0191,135.27,135.23,7.3943]
[1718845719055,16.0191,135.27,135.25,7.3935]
[1718845720743,16.0191,135.27,135.24,7.394]
[1718845721470,0.17,135.26,135.18,21.6544]
[1718845721645,0.68,135.26,135.22,7.3949]
[1718845722442,8.0732,135.26,135.21,7.3958]
[1718845722647,0.17,135.24,135.12,25.78]
[1718845722849,8.0745,135.24,135.13,20.0]
[1718845723049,0.68,135.24,135.13,20.0]
[1718845723249,0.68,135.24,135.19,7.3965]
[1718845723443,0.68,135.24,135.2,7.3963]
[1718845725456,0.34,135.24,135.13,20.0]
[1718845725766,0.34,135.24,135.22,7.3952]
[1718845725947,0.34,135.24,135.21,7.3956]
[1718845726671,0.17,135.23,135.2,7.3962]
[1718845726877,0.68,135.23,135.2,7.3962]
[1718845727275,0.68,135.23,135.19,7.3967]
[1718845727654,0.68,135.23,135.2,7.3964]
[1718845729668,0.68,135.23,135.19,7.3967]
[1718845729868,0.68,135.23,135.13,20.0]
[1718845731365,0.68,135.23,135.19,7.3969]
[1718845731873,0.68,135.23,135.12,40.8184]
[1718845731874,0.17,135.21,135.12,40.8184]
[1718845732084,28.076,135.21,135.16,7.3982]
[1718845732381,20.68,135.21,135.17,7.3979]
[1718845732966,0.17,135.19,135.09,15.5618]
[1718845733272,0.17,135.19,135.17,7.398]
[1718845733571,15.0108,135.22,135.09,15.5618]
[1718845733777,15.0108,135.22,135.21,7.3959]
[1718845734072,22.1585,135.25,135.23,7.3945]
[1718845734255,22.1585,135.25,135.22,7.3951]
[1718845734451,22.1585,135.25,135.21,7.3957]
[1718845735063,0.51,135.24,135.21,7.3957]
[1718845735379,22.1585,135.25,135.21,7.3957]
[1718845736071,22.1585,135.25,135.2,7.3962]
[1718845736670,0.68,135.24,135.2,7.3962]
[1718845736872,22.3373,135.29,135.24,7.3938]
[1718845737066,20.0,135.28,135.25,7.3937]
[1718845737273,22.3373,135.29,135.26,7.3928]
[1718845737578,22.3373,135.29,135.25,7.3934]
[1718845738077,22.3373,135.29,135.24,7.3941]
[1718845738577,22.3373,135.29,135.25,7.3935]
[1718845738783,0.17,135.28,135.25,7.3935]
[1718845739072,22.3373,135.29,135.25,7.3935]
[1718845739277,22.3373,135.29,135.24,7.3941]
[1718845739476,29.7291,135.29,135.23,7.3945]
[1718845739870,7.392,135.28,135.23,7.3945]
[1718845740273,22.3373,135.29,135.25,7.3937]
[1718845740576,7.3932,135.26,135.2,7.3959]
[1718845740778,0.68,135.25,135.15,16.0347]
[1718845740969,0.68,135.25,135.2,7.3962]
[1718845741163,0.68,135.25,135.15,16.0347]
[1718845741472,0.34,135.25,135.16,20.0]
[1718845741668,20.0,135.27,135.17,0.17]
[1718845741870,0.17,135.26,135.23,7.3946]
[1718845742059,0.51,135.26,135.23,7.3946]
[1718845742258,0.51,135.26,135.22,7.3951]
[1718845742777,0.51,135.26,135.23,7.3946]
[1718845743164,0.34,135.26,135.23,7.3946]
[1718845743366,22.3373,135.29,135.17,0.17]
[1718845743566,22.3373,135.29,135.27,7.3924]
[1718845743963,22.3373,135.29,135.26,7.3929]
[1718845744162,22.3373,135.29,135.24,7.3939]
[1718845744379,29.7289,135.29,135.23,7.3947]
[1718845744680,7.3925,135.28,135.17,0.51]
[1718845744985,0.17,135.27,135.23,7.3944]
[1718845745288,0.34,135.27,135.16,45.95]
[1718845745489,0.34,135.27,135.24,7.3941]
[1718845745790,0.17,135.28,135.26,7.393]
[1718845746084,22.3373,135.29,135.27,7.3925]
[1718845746275,16.2761,135.32,135.21,0.17]
[1718845746457,16.2761,135.32,135.29,7.3912]
[1718845746660,16.2761,135.32,135.21,20.68]
[1718845746661,16.2761,135.32,135.3,7.3908]
[1718845746856,16.2761,135.32,135.29,7.3913]
[1718845747056,16.2761,135.32,135.21,0.34]
[1718845747256,16.2761,135.32,135.25,7.3935]
[1718845747489,7.3905,135.31,135.25,7.3935]
[1718845747660,23.666,135.32,135.26,7.3931]
[1718845747861,23.666,135.32,135.27,7.3925]
[1718845748273,0.17,135.31,135.27,7.3925]
[1718845748484,20.68,135.31,135.26,7.3929]
[1718845749474,20.68,135.31,135.27,7.3923]
[1718845749683,0.68,135.31,135.27,7.3923]
[1718845750073,0.68,135.31,135.2,16.1667]
[1718845750280,0.17,135.29,135.25,7.3935]
[1718845750579,0.17,135.29,135.26,7.3926]
[1718845751586,0.34,135.31,135.27,7.3923]
[1718845751769,0.17,135.3,135.27,7.3923]
[1718845752990,0.17,135.3,135.22,22.07]
[1718845753183,0.34,135.3,135.22,22.07]
[1718845753390,0.17,135.31,135.28,7.3918]
[1718845753680,16.2761,135.32,135.3,7.3909]
[1718845753868,6.5022,135.33,135.31,7.3903]
[1718845754680,6.5022,135.33,135.3,7.3907]
[1718845754891,6.5022,135.33,135.29,7.3914]
[1718845755267,0.17,135.32,135.29,7.3914]
[1718845755607,6.5022,135.33,135.3,7.3909]
[1718845756894,6.5022,135.33,135.24,6.5961]
[1718845756895,6.5022,135.33,135.31,7.3904]
[1718845757501,6.5022,135.33,135.3,7.3907]
[1718845757887,0.51,135.34,135.31,7.3903]
[1718845758080,0.17,135.33,135.31,7.3903]
[1718845758483,0.17,135.33,135.3,7.3907]
[1718845758877,0.34,135.33,135.29,7.3913]
[1718845759072,0.51,135.32,135.28,7.3916]
[1718845759304,0.17,135.31,135.28,7.3916]
[1718845759498,0.17,135.31,135.23,20.0]
[1718845759703,23.8058,135.35,135.3,7.3906]
[1718845759886,20.68,135.34,135.29,7.3913]
[1718845760082,0.17,135.32,135.23,25.73]
[1718845760294,0.51,135.32,135.27,7.3921]
[1718845760598,0.17,135.31,135.27,7.3921]
[1718845760773,0.34,135.31,135.27,7.3921]
[1718845760973,0.17,135.3,135.27,7.3921]
[1718845761699,0.17,135.3,135.2,22.2883]
[1718845761878,0.17,135.3,135.28,7.3916]
[1718845762078,0.17,135.3,135.29,7.3915]
[1718845764110,0.34,135.31,135.29,7.3915]
[1718845764111,24.16185872,135.34,135.29,7.3915]
[1718845765601,16.77305872,135.34,135.21,20.17]
[1718845765902,16.77305872,135.34,135.31,7.39]
[1718845766407,0.17,135.33,135.31,7.39]
[1718845767289,7.7294,135.33,135.22,0.51]
[1718845767479,0.34,135.32,135.22,0.51]
[1718845767675,0.17,135.31,135.22,0.51]
[1718845768096,0.17,135.31,135.27,7.3922]
[1718845768406,0.17,135.31,135.28,7.3919]
[1718845768586,0.34,135.31,135.27,7.3924]
[1718845768903,0.34,135.31,135.2,22.4583]
[1718845768904,0.34,135.3,135.2,22.4583]
[1718845769076,0.17,135.29,135.21,0.17]
[1718845769287,0.34,135.29,135.2,22.2883]
[1718845769590,0.34,135.29,135.25,7.3934]
[1718845770109,0.34,135.29,135.2,22.2883]
[1718845770110,16.7795,135.28,135.24,7.3942]
[1718845771101,0.17,135.27,135.23,7.3945]
[1718845771290,0.34,135.27,135.16,23.20164073]
[1718845771601,0.34,135.26,135.18,20.0]
[1718845771888,0.17,135.25,135.23,7.3944]
[1718845773707,0.17,135.25,135.18,20.0]
[1718845774083,0.17,135.25,135.23,7.3944]
[1718845776900,0.17,135.25,135.22,7.3952]
[1718845777100,0.17,135.25,135.2,7.3963]
[1718845777101,7.734,135.25,135.2,7.3963]
[1718845777303,0.34,135.24,135.21,7.3958]
[1718845777612,0.17,135.23,135.21,7.3956]
[1718845777814,20.0,135.27,135.22,7.3953]
[1718845778111,0.68,135.26,135.22,7.3953]
[1718845778308,0.68,135.26,135.21,7.3958]
[1718845778810,8.0732,135.26,135.21,7.3958]
[1718845780820,8.0732,135.26,135.2,7.3962]
[1718845780994,0.17,135.24,135.2,7.3962]
[1718845781193,0.68,135.24,135.2,7.3962]
[1718845781600,0.68,135.24,135.19,7.3967]
[1718845781916,7.1522,135.24,135.21,7.3958]
[1718845782115,7.1522,135.24,135.2,7.3962]
[1718845782605,7.1522,135.24,135.19,7.3967]
[1718845783017,7.1522,135.24,135.2,7.3963]
[1718845783513,7.1522,135.24,135.22,7.3952]
[1718845783822,7.1522,135.24,135.17,22.09]
[1718845783823,20.0,135.25,135.23,7.3948]
[1718845784122,20.0,135.26,135.22,7.3951]
[1718845784419,20.0,135.26,135.17,22.09]
[1718845784626,20.0,135.26,135.21,7.3957]
[1718845784826,20.0,135.26,135.22,7.3953]
[1718845785120,0.51,135.25,135.21,7.3956]
[1718845785493,0.51,135.25,135.22,7.3953]
[1718845786317,0.51,135.25,135.17,22.09]
[1718845786318,27.98100338,135.31,135.28,7.3917]
[1718845786527,6.6417,135.31,135.28,7.3917]
[1718845786697,16.4113,135.32,135.26,22.09]
[1718845787025,13.7388,135.35,135.26,22.09]
[1718845787240,6.3506,135.35,135.26,22.09]
[1718845787415,6.3506,135.35,135.31,7.3902]
[1718845788008,0.34,135.34,135.31,7.3902]
[1718845788318,6.3506,135.35,135.31,7.3902]
[1718845788514,6.3506,135.35,135.32,7.3898]
[1718845789115,22.0806,135.39,135.29,22.09]
[1718845789312,22.0806,135.39,135.34,7.3883]
[1718845789924,29.4667,135.39,135.34,7.3883]
[1718845790139,7.3866,135.38,135.32,7.3897]
[1718845790299,7.3872,135.37,135.32,7.3897]
[1718845790727,7.3868,135.38,135.32,7.3897]
[1718845791030,0.68,135.37,135.29,22.09]
[1718845791205,0.68,135.37,135.32,7.3897]
[1718845791728,0.68,135.37,135.33,7.3892]
[1718845792406,0.68,135.37,135.32,7.3896]
[1718845792641,0.68,135.37,135.34,7.3885]
[1718845792807,0.68,135.37,135.32,7.3894]
[1718845793132,0.68,135.37,135.33,7.3891]
[1718845793334,0.68,135.37,135.29,22.09]
[1718845793504,0.68,135.37,135.32,7.3895]
[1718845796908,0.68,135.37,135.33,7.3892]
[1718845797904,0.68,135.37,135.29,22.09]
[1718845798124,0.68,135.37,135.31,7.3901]
[1718845798627,0.17,135.35,135.3,7.3908]
[1718845799014,0.68,135.35,135.3,7.3908]
[1718845799215,8.0684,135.35,135.29,7.3913]
[1718845799537,15.3847,135.33,135.29,7.3913]
[1718845799745,0.51,135.32,135.29,7.3913]
[1718845800234,0.51,135.32,135.24,16.5516]
[1718845800434,15.2147,135.33,135.25,20.0]
[1718845800640,15.2147,135.36,135.26,22.09]
[1718845800846,15.2147,135.36,135.33,7.3891]
[1718845801015,15.2147,135.36,135.32,7.3896]
[1718845801220,15.2147,135.36,135.31,7.3902]
[1718845801419,15.2147,135.36,135.27,20.0]
[1718845801717,15.2147,135.36,135.32,7.3896]
[1718845801928,0.17,135.35,135.32,7.3896]
[1718845802415,0.51,135.35,135.32,7.3896]
[1718845802612,0.17,135.34,135.3,7.3906]
[1718845802815,0.51,135.34,135.31,7.39]
[1718845803023,0.17,135.33,135.31,7.39]
[1718845803333,0.17,135.33,135.3,7.3907]
[1718845803510,0.51,135.33,135.3,7.3907]
[1718845803712,0.34,135.33,135.3,7.3907]
[1718845803944,0.17,135.33,135.31,7.3903]
[1718845804232,0.68,135.34,135.31,7.3903]
[1718845805542,0.68,135.34,135.21,37.8183]
[1718845805543,15.3118,135.3,135.21,37.8183]
[1718845805840,22.7031,135.3,135.24,7.3937]
[1718845806132,0.51,135.29,135.26,7.393]
[1718845806837,0.51,135.29,135.25,7.3935]
[1718845807024,0.17,135.28,135.19,1.28788839]
[1718845807232,7.3928,135.27,135.19,1.28788839]
[1718845807524,0.68,135.26,135.21,7.3955]
[1718845807728,26.7277,135.26,135.18,7.3974]
[1718845808034,26.7277,135.26,135.19,7.3968]
[1718845808035,7.5644,135.24,135.19,7.3968]
[1718845808234,0.17,135.23,135.19,7.3968]
[1718845808433,0.51,135.23,135.19,7.3968]
[1718845808624,0.51,135.23,135.2,7.3963]
[1718845809033,0.51,135.23,135.19,7.3967]
[1718845809543,0.51,135.23,135.16,18.4952]
[1718845810040,0.51,135.23,135.19,7.3968]
[1718845810742,0.51,135.23,135.2,7.3961]
[1718845810928,0.51,135.23,135.16,18.4952]
[1718845810929,0.51,135.23,135.21,7.3958]
[1718845811340,0.17,135.23,135.21,7.3958]
[1718845812128,26.0477,135.26,135.18,22.09]
[1718845812336,26.0477,135.26,135.19,18.4924]
[1718845812337,0.51,135.25,135.19,18.4924]
[1718845812548,0.51,135.25,135.2,7.3962]
[1718845812749,0.17,135.24,135.2,7.3962]
[1718845813130,0.17,135.24,135.21,7.3957]
[1718845813346,0.17,135.24,135.2,7.3961]
[1718845814839,0.17,135.24,135.15,22.09]
[1718845815340,0.17,135.24,135.19,7.3967]
[1718845815341,7.5644,135.24,135.19,7.3967]
[1718845815524,0.51,135.23,135.19,7.3967]
[1718845815842,0.51,135.23,135.15,22.09]
[1718845815843,7.3972,135.19,135.14,1.288953]
[1718845816050,0.17,135.2,135.12,7.4006]
[1718845816051,8.0775,135.18,135.12,7.4006]
[1718845816423,7.3988,135.16,135.11,7.4011]
[1718845816723,7.3988,135.16,135.1,7.4017]
[1718845816724,0.51,135.15,135.1,7.4017]
[1718845817047,0.51,135.15,135.09,22.09]
[1718845817048,0.17,135.14,135.09,7.4019]
[1718845817243,0.17,135.14,135.11,7.4012]
[1718845818138,0.17,135.14,135.1,7.4016]
[1718845818354,0.17,135.14,135.06,22.09]
[1718845818529,15.3641,135.14,135.08,7.4028]
[1718845818729,20.51,135.13,135.08,7.4028]
[1718845819134,20.51,135.13,135.09,7.4024]
[1718845820743,0.17,135.12,135.1,7.4018]
[1718845822060,0.17,135.12,135.09,7.4022]
[1718845822633,0.17,135.12,135.08,7.4028]
[1718845822953,0.17,135.12,135.09,7.4023]
[1718845823155,0.17,135.12,135.07,7.4031]
[1718845823936,0.17,135.12,135.08,7.4028]
[1718845824538,0.17,135.12,135.07,7.4033]
[1718845825140,7.4017,135.11,135.05,7.4045]
[1718845825341,20.51,135.1,135.06,7.4039]
[1718845825542,0.17,135.09,135.06,7.4039]
[1718845825865,0.34,135.09,135.06,7.4039]
[1718845826055,0.17,135.08,135.03,40.6032]
[1718845826248,0.51,135.08,135.03,40.6032]
[1718845827141,0.51,135.08,135.05,7.4044]
[1718845827662,0.34,135.08,135.05,7.4044]
[1718845827870,0.34,135.08,135.03,7.4054]